fUSD/lending_fUSD_20251117
["ID","MTS","AMOUNT","RATE_DAILY","PERIOD"]
[394277690,1763416248020,-500.0,0.00039676,7]
[394277691,1763416248029,-1607.0,0.00039676,2]
[394277692,1763416248038,-22946.546817,0.00039676,3]
[394277693,1763416248047,-500.0,0.00039686,7]
[394277694,1763416248056,-500.0,0.00039686,7]
[394277695,1763416248065,-500.0,0.00039686,7]
[394277696,1763416248074,-1607.0,0.00039686,2]
[394277698,1763416248083,-1607.0,0.00039686,2]
[394277699,1763416248092,-1607.0,0.00039686,2]
[394277701,1763416248101,-500.0,0.00039699,7]
[394277703,1763416248111,-1607.0,0.00039699,2]
[394277704,1763416248120,-150.0,0.000397,7]
[394277705,1763416248129,-150.0,0.000397,7]
[394277706,1763416248138,-150.0,0.000397,7]
[394277707,1763416248147,-502.20352986,0.00039721,5]
[394277708,1763416248156,-1000.0,0.00039726,14]
[394277709,1763416248165,-150.0,0.00039748,7]
[394277710,1763416248174,-196.55637064,0.00039759,15]
[394277711,1763416248183,-150.0,0.00039772,7]
[394277712,1763416248192,-150.0,0.00039785,7]
[394277713,1763416248202,-518.4226539,0.00039825,2]
[394277714,1763416248211,-150.0,0.00039836,7]
[394277715,1763416248220,-10823.0,0.00039859,5]
[394277716,1763416248229,-23642.4426357,0.00039865,3]
[394277717,1763416248238,-150.0,0.00039875,2]
[394277718,1763416248247,-500.0,0.00039875,2]
[394277719,1763416248257,-150.0,0.00039895,7]
[394277720,1763416248266,-150.0,0.00039895,7]
[394277721,1763416248275,-150.0,0.00039895,7]
[394277722,1763416248284,-800.0,0.000399,14]
[394277723,1763416248294,-150.0,0.00039913,7]
[394277724,1763416248303,-150.0,0.00039973,7]
[394277725,1763416248311,-150.0,0.00039973,7]
[394277726,1763416248321,-150.0,0.00039973,7]
[394277727,1763416248330,-150.0,0.00039988,7]
[394277728,1763416248339,-22946.546817,0.00039989,3]
[394277729,1763416248349,-1000.0,0.0004,14]
[394277730,1763416248358,-171.0,0.0004,2]
[394277731,1763416248367,-3618.0,0.0004,5]
[394277732,1763416248376,-1000.0,0.00040021,5]
[394277733,1763416248385,-607.52246125,0.00040021,5]
[394277734,1763416248394,-287.0,0.00040027,2]
[394277735,1763416248404,-150.0,0.00040042,7]
[394277736,1763416248414,-150.0,0.00040042,7]
[394277737,1763416248423,-150.0,0.00040042,7]
[394277738,1763416248432,-150.0,0.00040042,7]
[394277739,1763416248442,-196.55637064,0.00040043,15]
[394277740,1763416248451,-23642.4426357,0.00040058,3]
[394277741,1763416248461,-1295.40803649,0.00040068,5]
[394277742,1763416248471,-909.34483282,0.00040068,5]
[394277743,1763416248481,-1510.85568218,0.00040068,5]
[394277744,1763416248491,-607.24,0.000401,30]
[394277745,1763416248500,-1500.0,0.00040168,5]
[394277746,1763416248509,-432.78038,0.00040168,5]
[394277747,1763416248522,-150.0,0.0004017,7]
[394277748,1763416248531,-23642.4426357,0.00040181,3]
[394277749,1763416248541,-151.0,0.00040188,14]
[394277750,1763416248549,-151.0,0.00040188,14]
[394277751,1763416248561,-150.0,0.00040188,7]
[394277752,1763416248571,-150.0,0.00040188,7]
[394277753,1763416248580,-22946.546817,0.00040191,3]
[394277754,1763416248589,-300.0,0.00040199,2]
[394277755,1763416248600,-5663.27,0.00040201,2]
[394277756,1763416248609,-150.0,0.00040204,7]
[394277757,1763416248619,-174.18899387,0.00040224,14]
[394277758,1763416248627,-518.4226539,0.00040235,2]
[394277759,1763416248809,-150.0,0.00040247,7]
[394277760,1763416248818,-150.0,0.00040247,7]
[394277761,1763416248827,-150.0,0.00040247,7]
[394277762,1763416248837,-150.0,0.00040247,7]
[394277763,1763416248847,-1000.0,0.00040274,14]
[394277764,1763416248856,-338.9,0.00040274,2]
[394277765,1763416248866,-169.45,0.00040274,2]
[394277766,1763416248876,-150.0,0.00040298,7]
[394277767,1763416248885,-196.55637064,0.00040327,15]
[394277768,1763416248895,-150.0,0.00040335,7]
[394277769,1763416248904,-20925.21404727,0.00040406,15]
[394277770,1763416248915,-150.0,0.0004042,7]
[394277771,1763416248925,-150.0,0.00040427,7]
[394277772,1763416248936,-150.0,0.00040482,7]
[394277773,1763416248946,-150.0,0.00040482,7]
[394277774,1763416248956,-150.0,0.00040482,7]
[394277775,1763416248965,-5518.0,0.000405,3]
[394277776,1763416248975,-150.0,0.00040521,7]
[394277777,1763416248985,-150.0,0.00040521,7]
[394277778,1763416248996,-150.0,0.00040521,7]
[394277779,1763416249006,-1000.0,0.00040548,14]
[394277780,1763416249016,-150.0,0.00040555,7]
[394277781,1763416249026,-205.86742155,0.00040563,12]
[394277782,1763416249035,-205.86742148,0.00040563,12]
[394277783,1763416249045,-205.86742148,0.00040563,12]
[394277784,1763416249054,-205.86742148,0.00040563,12]
[394277785,1763416249063,-205.86742148,0.00040563,12]
[394277786,1763416249072,-205.86742148,0.00040563,12]
[394277787,1763416249081,-205.86742148,0.00040563,12]
[394277788,1763416249091,-205.86742148,0.00040563,12]
[394277789,1763416249100,-205.86742148,0.00040563,12]
[394277790,1763416249109,-205.86742148,0.00040563,12]
[394277791,1763416249118,-151.16713156,0.00040568,5]
[394277792,1763416249127,-45893.0936339,0.0004059,3]
[394277793,1763416249137,-1200.0,0.000406,14]
[394277794,1763416249147,-196.55637064,0.00040611,15]
[394277795,1763416249156,-150.0,0.00040628,7]
[394277796,1763416249166,-150.0,0.00040636,7]
[394277797,1763416249175,-518.4226539,0.00040644,2]
[394277798,1763416249184,-150.0,0.00040658,7]
[394277799,1763416249194,-287.0,0.00040682,2]
[394277800,1763416249205,-150.0,0.00040683,7]
[394277801,1763416249217,-1600.0,0.000407,14]
[394277802,1763416249226,-1012.547964,0.00040716,5]
[394277803,1763416249234,-22946.546817,0.00040744,3]
[394277804,1763416249244,-152.0,0.00040754,3]
[394277805,1763416249254,-150.0,0.00040775,7]
[394277806,1763416249263,-150.0,0.00040775,7]
[394277807,1763416249272,-272.8,0.00040777,2]
[394277808,1763416249282,-150.0,0.00040795,7]
[394277809,1763416249291,-150.0,0.00040795,7]
[394277810,1763416249300,-150.0,0.00040795,7]
[394277811,1763416249309,-1000.0,0.000408,7]
[394277812,1763416249318,-2000.0,0.000408,14]
[394277813,1763416249328,-585.404,0.00040801,2]
[394277814,1763416249337,-608.0,0.00040801,2]
[394277815,1763416249346,-1318.0,0.00040801,2]
[394277816,1763416249355,-1599.0,0.00040801,2]
[394277817,1763416249366,-821.0,0.00040801,2]
[394277818,1763416249375,-1275.0,0.00040801,2]
[394277819,1763416249384,-793.0,0.00040801,2]
[394277820,1763416249394,-560.0,0.00040801,2]
[394277821,1763416249404,-1604.0,0.00040801,2]
[394277822,1763416249413,-6489.0,0.00040801,2]
[394277823,1763416249422,-150.0,0.00040812,7]
[394277824,1763416249432,-1000.0,0.00040822,14]
[394277825,1763416249441,-2000.0,0.00040842,5]
[394277826,1763416249450,-287.0,0.00040847,2]
[394277827,1763416249459,-150.0,0.00040852,7]
[394277828,1763416249468,-168.0,0.00040854,2]
[394277829,1763416249478,-196.55637064,0.00040895,15]
[394277830,1763416249487,-400.0,0.000409,14]
[394277831,1763416249499,-1000.0,0.000409,7]
[394277832,1763416249509,-150.0,0.00040922,7]
[394277833,1763416249518,-150.0,0.0004094,7]
[394277834,1763416249527,-22946.546817,0.00040975,3]
[394277835,1763416249537,-239.54056726,0.00040995,120]
[394277836,1763416249546,-8963.19778254,0.00040995,15]
[394277837,1763416249555,-184.18582252,0.00040995,2]
[394277838,1763416249564,-2879.56660176,0.00040995,2]
[394277839,1763416249573,-381.58217503,0.00040995,2]
[394277840,1763416249582,-152.22113204,0.00040995,120]
[394277841,1763416249591,-152.22113204,0.00040995,120]
[394277842,1763416249601,-171.0,0.00041,30]
[394277843,1763416249610,-1000.0,0.00041,7]
[394277844,1763416249619,-1010.62245632,0.00041,30]
[394277845,1763416249628,-518.4226539,0.00041053,2]
[394277846,1763416249638,-500.0,0.00041059,2]
[394277847,1763416249647,-214.81507242,0.00041068,7]
[394277848,1763416249657,-220.57067098,0.00041068,7]
[394277849,1763416249666,-150.0,0.00041068,7]
[394277850,1763416249676,-276.09837656,0.00041068,7]
[394277851,1763416249686,-210.22339802,0.00041068,7]
[394277852,1763416249699,-150.0,0.00041068,7]
[394277853,1763416249708,-150.0,0.00041068,7]
[394277854,1763416249718,-243.99883473,0.00041068,7]
[394277855,1763416249727,-150.0,0.00041068,7]
[394277856,1763416249737,-150.0,0.00041068,7]
[394277857,1763416249747,-227.09263737,0.00041068,7]
[394277858,1763416249756,-150.0,0.00041068,7]
[394277859,1763416249767,-150.0,0.00041068,7]
[394277860,1763416249776,-150.0,0.00041068,7]
[394277861,1763416249791,-501.89985853,0.00041073,5]
[394277862,1763416249803,-180.33962292,0.00041075,7]
[394277863,1763416249813,-300.0,0.00041079,2]
[394277864,1763416249823,-151.0,0.00041085,120]
[394277865,1763416249832,-151.0,0.00041085,120]
[394277866,1763416249842,-160.9831,0.00041085,120]
[394277867,1763416249851,-151.0,0.00041085,120]
[394277868,1763416249861,-151.0,0.00041085,10]
[394277869,1763416249872,-198.9599,0.00041085,10]
[394277870,1763416249882,-151.0,0.00041085,120]
[394277871,1763416249891,-151.0,0.00041085,120]
[394277872,1763416249900,-151.0,0.00041085,120]
[394277873,1763416249910,-151.0,0.00041085,120]
[394277874,1763416249919,-220.815972,0.00041085,30]
[394277875,1763416249928,-220.815972,0.00041085,30]
[394277876,1763416249939,-151.0,0.00041085,120]
[394277877,1763416249949,-151.0,0.00041085,120]
[394277878,1763416249960,-220.815972,0.00041085,30]
[394277879,1763416249969,-220.815972,0.00041085,30]
[394277880,1763416249979,-151.0,0.00041085,120]
[394277881,1763416249990,-151.0,0.00041085,120]
[394277882,1763416250001,-151.0,0.00041085,120]
[394277883,1763416250010,-151.0,0.00041085,120]
[394277884,1763416250020,-151.0,0.00041085,120]
[394277885,1763416250029,-419.346313,0.00041085,120]
[394277886,1763416250039,-151.0,0.00041085,120]
[394277887,1763416250049,-151.0,0.00041085,120]
[394277888,1763416250059,-419.346313,0.00041085,120]
[394277889,1763416250068,-419.346313,0.00041085,120]
[394277890,1763416250078,-151.0,0.00041085,120]
[394277891,1763416250088,-419.346313,0.00041085,120]
[394277892,1763416250097,-151.0,0.00041085,120]
[394277893,1763416250107,-151.0,0.00041085,120]
[394277894,1763416250117,-151.0,0.00041085,120]
[394277895,1763416250126,-151.0,0.00041085,120]
[394277896,1763416250135,-151.0,0.00041085,120]
[394277897,1763416250145,-151.0,0.00041085,120]
[394277898,1763416250154,-151.0,0.00041085,120]
[394277899,1763416250163,-298305.10862,0.00041085,3]
[394277900,1763416250172,-151.0,0.00041092,14]
[394277901,1763416250182,-151.0,0.00041092,14]
[394277902,1763416250191,-300.0,0.00041094,10]
[394277903,1763416250200,-300.0,0.00041094,10]
[394277904,1763416250209,-300.0,0.00041094,10]
[394277905,1763416250219,-500.0,0.00041094,7]
[394277906,1763416250227,-500.0,0.00041094,7]
[394277907,1763416250236,-500.0,0.00041094,7]
[394277908,1763416250245,-500.0,0.00041094,7]
[394277909,1763416250254,-500.0,0.00041094,7]
[394277910,1763416250263,-500.0,0.00041094,7]
[394277911,1763416250272,-500.0,0.00041094,7]
[394277912,1763416250282,-500.0,0.00041094,7]
[394277913,1763416250291,-500.0,0.00041094,7]
[394277914,1763416250300,-500.0,0.00041094,7]
[394277915,1763416250309,-392.28556798,0.00041094,7]
[394277916,1763416250318,-1607.0,0.00041094,2]
[394277917,1763416250328,-1607.0,0.00041094,2]
[394277918,1763416250337,-1607.0,0.00041094,2]
[394277919,1763416250346,-1607.0,0.00041094,2]
[394277920,1763416250355,-1607.0,0.00041094,2]
[394277921,1763416250364,-1607.0,0.00041094,2]
[394277922,1763416250373,-1607.0,0.00041094,2]
[394277923,1763416250383,-1607.0,0.00041094,2]
[394277924,1763416250392,-1607.0,0.00041094,2]
[394277925,1763416250401,-1607.0,0.00041094,2]
[394277926,1763416250410,-1607.0,0.00041094,2]
[394277927,1763416250419,-1607.16103988,0.00041094,2]
[394277928,1763416250428,-500.0,0.00041095,30]
[394277929,1763416250437,-362.44249151,0.00041095,30]
[394277930,1763416250446,-953.68640835,0.00041095,120]
[394277931,1763416250455,-500.0,0.00041095,30]
[394277932,1763416250465,-513.64590588,0.00041095,30]
[394277933,1763416250474,-500.0,0.00041095,2]
[394277934,1763416250483,-500.0,0.00041095,2]
[394277935,1763416250492,-500.0,0.00041095,2]
[394277936,1763416250502,-500.0,0.00041095,2]
[394277937,1763416250511,-500.0,0.00041095,2]
[394277938,1763416250520,-500.0,0.00041095,2]
[394277939,1763416250529,-500.0,0.00041095,2]
[394277940,1763416250538,-500.0,0.00041095,2]
[394277941,1763416250547,-500.0,0.00041095,2]
[394277942,1763416250557,-500.0,0.00041095,2]
[394277943,1763416250575,-500.0,0.00041095,30]
[394277944,1763416250585,-507.14849343,0.00041095,30]
[394277945,1763416250595,-412.17263799,0.00041095,30]
[394277946,1763416250605,-500.0,0.00041095,30]
[394277947,1763416250615,-273.18155567,0.00041095,30]
[394277948,1763416250626,-500.0,0.00041095,30]
[394277949,1763416250636,-500.0,0.00041095,30]
[394277950,1763416250645,-500.0,0.00041095,30]
[394277951,1763416250656,-500.0,0.00041095,30]
[394277952,1763416250666,-500.0,0.00041095,30]
[394277953,1763416250675,-500.0,0.00041095,30]
[394277954,1763416250687,-500.0,0.00041095,30]
[394277955,1763416250698,-500.0,0.00041095,30]
[394277956,1763416250709,-498.55006797,0.00041095,30]
[394277957,1763416250719,-336.41736396,0.00041095,30]
[394277958,1763416250730,-500.0,0.00041095,30]
[394277959,1763416250739,-500.0,0.00041095,30]
[394277960,1763416250752,-500.0,0.00041095,30]
[394277961,1763416250761,-500.0,0.00041095,30]
[394277962,1763416250771,-500.0,0.00041095,30]
[394277963,1763416250780,-500.0,0.00041095,30]
[394277964,1763416250789,-500.0,0.00041095,30]
[394277965,1763416250798,-500.0,0.00041095,30]
[394277966,1763416250807,-500.0,0.00041095,30]
[394277967,1763416250816,-500.0,0.00041095,30]
[394277968,1763416250825,-361.79645325,0.00041095,30]
[394277969,1763416250835,-500.0,0.00041095,30]
[394277970,1763416250844,-500.0,0.00041095,30]
[394277971,1763416250854,-500.0,0.00041095,30]
[394277972,1763416250863,-500.0,0.00041095,30]
[394277973,1763416250873,-500.0,0.00041095,30]
[394277974,1763416250882,-500.0,0.00041095,30]
[394277975,1763416250892,-500.0,0.00041095,30]
[394277976,1763416250902,-500.0,0.00041095,30]
[394277977,1763416250911,-500.0,0.00041095,30]
[394277978,1763416250921,-420.69445434,0.00041095,30]
[394277979,1763416250930,-500.0,0.00041095,30]
[394277980,1763416250939,-500.0,0.00041095,30]
[394277981,1763416250949,-500.0,0.00041095,30]
[394277982,1763416250958,-162.18949491,0.00041095,30]
[394277983,1763416250967,-500.0,0.00041095,30]
[394277984,1763416250976,-409.35756547,0.00041095,30]
[394277985,1763416250986,-500.0,0.00041095,30]
[394277986,1763416250998,-500.0,0.00041095,30]
[394277987,1763416251008,-500.0,0.00041095,30]
[394277988,1763416251018,-500.0,0.00041095,30]
[394277989,1763416251027,-500.0,0.00041095,30]
[394277990,1763416251037,-500.0,0.00041095,30]
[394277991,1763416251046,-500.0,0.00041095,30]
[394277992,1763416251055,-500.0,0.00041095,30]
[394277993,1763416251064,-500.0,0.00041095,30]
[394277994,1763416251073,-500.0,0.00041095,30]
[394277995,1763416251082,-500.0,0.00041095,30]
[394277996,1763416251091,-500.0,0.00041095,30]
[394277997,1763416251100,-500.0,0.00041095,30]
[394277998,1763416251109,-151.0,0.00041095,120]
[394277999,1763416251118,-500.0,0.00041095,30]
[394278000,1763416251179,-151.0,0.00041095,120]
[394278001,1763416251189,-500.0,0.00041095,30]
[394278002,1763416251198,-500.0,0.00041095,30]
[394278003,1763416251208,-199.38564421,0.00041095,30]
[394278004,1763416251217,-151.0,0.00041095,120]
[394278005,1763416251226,-151.0,0.00041095,120]
[394278006,1763416251235,-500.0,0.00041095,30]
[394278007,1763416251244,-500.0,0.00041095,30]
[394278008,1763416251257,-500.0,0.00041095,30]
[394278009,1763416251266,-500.0,0.00041095,30]
[394278010,1763416251275,-500.0,0.00041095,30]
[394278011,1763416251284,-500.0,0.00041095,30]
[394278012,1763416251294,-500.0,0.00041095,30]
[394278013,1763416251303,-236.30708786,0.00041095,30]
[394278014,1763416251313,-256.09548872,0.00041095,30]
[394278015,1763416251322,-500.0,0.00041095,30]
[394278016,1763416251331,-500.0,0.00041095,30]
[394278017,1763416251339,-500.0,0.00041095,30]
[394278018,1763416251349,-500.0,0.00041095,30]
[394278019,1763416251358,-500.0,0.00041095,30]
[394278020,1763416251367,-500.0,0.00041095,30]
[394278021,1763416251376,-500.0,0.00041095,30]
[394278022,1763416251385,-500.0,0.00041095,30]
[394278023,1763416251393,-500.0,0.00041095,30]
[394278024,1763416251402,-500.0,0.00041095,30]
[394278025,1763416251411,-410.63596649,0.00041095,30]
[394278026,1763416251419,-352.69386752,0.00041095,30]
[394278027,1763416251428,-500.0,0.00041095,30]
[394278028,1763416251438,-500.0,0.00041095,30]
[394278029,1763416251447,-500.0,0.00041095,30]
[394278030,1763416251456,-500.0,0.00041095,30]
[394278031,1763416251465,-500.0,0.00041095,30]
[394278032,1763416251475,-500.0,0.00041095,30]
[394278033,1763416251484,-500.0,0.00041095,30]
[394278034,1763416251493,-500.0,0.00041095,30]
[394278035,1763416251504,-500.0,0.00041095,30]
[394278036,1763416251513,-235.26950098,0.00041095,30]
[394278037,1763416251522,-229.72408343,0.00041095,30]
[394278038,1763416251531,-500.0,0.00041095,30]
[394278039,1763416251540,-500.0,0.00041095,30]
[394278040,1763416251548,-500.0,0.00041095,30]
[394278041,1763416251557,-500.0,0.00041095,30]
[394278042,1763416251566,-500.0,0.00041095,30]
[394278043,1763416251575,-500.0,0.00041095,30]
[394278044,1763416251584,-500.0,0.00041095,30]
[394278045,1763416251593,-500.0,0.00041095,30]
[394278046,1763416251602,-500.0,0.00041095,30]
[394278047,1763416251610,-500.0,0.00041095,30]
[394278048,1763416251619,-257.89799033,0.00041095,30]
[394278049,1763416251627,-500.0,0.00041095,30]
[394278050,1763416251636,-500.0,0.00041095,30]
[394278051,1763416251645,-500.0,0.00041095,30]
[394278052,1763416251654,-500.0,0.00041095,30]
[394278053,1763416251663,-590.49670935,0.00041095,30]
[394278054,1763416251672,-500.0,0.00041095,30]
[394278055,1763416251681,-500.0,0.00041095,30]
[394278056,1763416251692,-500.0,0.00041095,30]
[394278057,1763416251703,-321.87598271,0.00041095,30]
[394278058,1763416251712,-500.0,0.00041095,30]
[394278059,1763416251721,-509.03051016,0.00041095,30]
[394278060,1763416251731,-500.0,0.00041095,7]
[394278061,1763416251740,-500.0,0.00041095,7]
[394278062,1763416251751,-500.0,0.00041095,7]
[394278063,1763416251760,-500.0,0.00041095,7]
[394278064,1763416251770,-500.0,0.00041095,7]
[394278065,1763416251779,-263.72453366,0.00041095,7]
[394278066,1763416251788,-500.0,0.00041095,30]
[394278067,1763416251797,-494.95210083,0.00041095,30]
[394278068,1763416251807,-500.0,0.00041095,30]
[394278069,1763416251816,-500.0,0.00041095,30]
[394278070,1763416251825,-500.0,0.00041095,30]
[394278071,1763416251834,-500.0,0.00041095,30]
[394278072,1763416251843,-500.0,0.00041095,30]
[394278073,1763416251853,-500.0,0.00041095,30]
[394278074,1763416251863,-500.0,0.00041095,30]
[394278075,1763416251873,-500.0,0.00041095,30]
[394278076,1763416251884,-500.0,0.00041095,30]
[394278077,1763416251893,-442.37191688,0.00041095,30]
[394278078,1763416251906,-500.0,0.00041095,30]
[394278079,1763416251923,-500.0,0.00041095,30]
[394278080,1763416251932,-318.98953102,0.00041095,30]
[394278081,1763416251944,-500.0,0.00041095,30]
[394278082,1763416251953,-500.0,0.00041095,30]
[394278083,1763416251963,-500.0,0.00041095,30]
[394278084,1763416251972,-500.0,0.00041095,30]
[394278085,1763416251982,-500.0,0.00041095,30]
[394278086,1763416251992,-500.0,0.00041095,30]
[394278087,1763416252007,-500.0,0.00041095,30]
[394278088,1763416252018,-500.0,0.00041095,30]
[394278089,1763416252033,-500.0,0.00041095,30]
[394278090,1763416252043,-500.0,0.00041095,30]
[394278091,1763416252052,-500.0,0.00041095,30]
[394278092,1763416252063,-500.0,0.00041095,30]
[394278093,1763416252074,-500.0,0.00041095,30]
[394278094,1763416252084,-154.046413,0.00041095,120]
[394278095,1763416252094,-620.67830597,0.00041095,30]
[394278096,1763416252105,-500.0,0.00041095,30]
[394278097,1763416252115,-500.0,0.00041095,30]
[394278098,1763416252125,-500.0,0.00041095,30]
[394278099,1763416252134,-151.0,0.00041095,120]
[394278100,1763416252146,-500.0,0.00041095,30]
[394278101,1763416252155,-500.0,0.00041095,30]
[394278102,1763416252164,-500.0,0.00041095,30]
[394278103,1763416252174,-500.0,0.00041095,30]
[394278104,1763416252183,-500.0,0.00041095,30]
[394278105,1763416252194,-500.0,0.00041095,30]
[394278106,1763416252203,-500.0,0.00041095,30]
[394278107,1763416252214,-500.0,0.00041095,30]
[394278108,1763416252224,-335.35955709,0.00041095,30]
[394278109,1763416252233,-500.0,0.00041095,30]
[394278110,1763416252243,-500.0,0.00041095,30]
[394278111,1763416252257,-500.0,0.00041095,30]
[394278112,1763416252267,-250.3609601,0.00041095,30]
[394278113,1763416252276,-500.0,0.00041095,30]
[394278114,1763416252285,-500.0,0.00041095,30]
[394278115,1763416252295,-500.0,0.00041095,30]
[394278116,1763416252305,-500.0,0.00041095,30]
[394278117,1763416252315,-500.0,0.00041095,30]
[394278118,1763416252324,-151.0,0.00041095,120]
[394278119,1763416252334,-500.0,0.00041095,30]
[394278120,1763416252343,-500.0,0.00041095,30]
[394278121,1763416252353,-500.0,0.00041095,30]
[394278122,1763416252362,-165.28732231,0.00041095,30]
[394278123,1763416252371,-500.0,0.00041095,30]
[394278124,1763416252380,-500.0,0.00041095,30]
[394278125,1763416252390,-500.0,0.00041095,30]
[394278126,1763416252399,-500.0,0.00041095,30]
[394278127,1763416252409,-628.98604726,0.00041095,30]
[394278128,1763416252418,-517.61033749,0.00041095,30]
[394278129,1763416252428,-500.0,0.00041095,30]
[394278130,1763416252438,-500.0,0.00041095,30]
[394278131,1763416252447,-151.0,0.00041095,120]
[394278132,1763416252456,-500.0,0.00041095,30]
[394278133,1763416252466,-151.0,0.00041095,120]
[394278134,1763416252476,-500.0,0.00041095,30]
[394278135,1763416252485,-500.0,0.00041095,30]
[394278136,1763416252494,-500.0,0.00041095,30]
[394278137,1763416252506,-500.0,0.00041095,30]
[394278138,1763416252516,-500.0,0.00041095,30]
[394278139,1763416252525,-500.0,0.00041095,30]
[394278140,1763416252534,-340.40030439,0.00041095,30]
[394278141,1763416252543,-459.69836561,0.00041095,30]
[394278142,1763416252552,-500.0,0.00041095,30]
[394278143,1763416252562,-500.0,0.00041095,30]
[394278144,1763416252571,-500.0,0.00041095,30]
[394278145,1763416252580,-500.0,0.00041095,30]
[394278146,1763416252589,-500.0,0.00041095,30]
[394278147,1763416252597,-218.06651847,0.00041095,30]
[394278148,1763416252607,-412.15736705,0.00041095,30]
[394278149,1763416252616,-506.7503255,0.00041095,30]
[394278150,1763416252625,-500.0,0.00041095,30]
[394278151,1763416252634,-500.0,0.00041095,30]
[394278152,1763416252644,-500.0,0.00041095,30]
[394278153,1763416252653,-500.0,0.00041095,30]
[394278154,1763416252662,-500.0,0.00041095,30]
[394278155,1763416252671,-500.0,0.00041095,30]
[394278156,1763416252680,-419.11877804,0.00041095,30]
[394278157,1763416252690,-500.0,0.00041095,30]
[394278158,1763416252703,-500.0,0.00041095,30]
[394278159,1763416252712,-151.0,0.00041095,120]
[394278160,1763416252722,-500.0,0.00041095,30]
[394278161,1763416252732,-500.0,0.00041095,30]
[394278162,1763416252743,-152.508426,0.00041095,120]
[394278163,1763416252756,-500.0,0.00041095,30]
[394278164,1763416252765,-500.0,0.00041095,30]
[394278165,1763416252777,-500.0,0.00041095,30]
[394278166,1763416252786,-561.53476007,0.00041095,30]
[394278167,1763416252795,-500.0,0.00041095,30]
[394278168,1763416252804,-500.0,0.00041095,30]
[394278169,1763416252813,-500.0,0.00041095,30]
[394278170,1763416252822,-500.0,0.00041095,30]
[394278171,1763416252831,-397.92723103,0.00041095,30]
[394278172,1763416252840,-500.0,0.00041095,30]
[394278173,1763416252849,-500.0,0.00041095,30]
[394278174,1763416252858,-500.0,0.00041095,30]
[394278175,1763416252868,-500.0,0.00041095,30]
[394278176,1763416252877,-151.0,0.00041095,120]
[394278177,1763416252886,-500.0,0.00041095,30]
[394278178,1763416252896,-500.0,0.00041095,30]
[394278179,1763416252905,-151.0,0.00041095,120]
[394278180,1763416252915,-500.0,0.00041095,30]
[394278181,1763416252924,-500.0,0.00041095,30]
[394278182,1763416252933,-500.0,0.00041095,30]
[394278183,1763416252942,-500.0,0.00041095,30]
[394278184,1763416252952,-229.70366669,0.00041095,30]
[394278185,1763416252960,-500.0,0.00041095,30]
[394278186,1763416252971,-500.0,0.00041095,30]
[394278187,1763416252980,-491.74734706,0.00041095,30]
[394278188,1763416252989,-500.0,0.00041095,30]
[394278189,1763416253001,-500.0,0.00041095,30]
[394278190,1763416253010,-500.0,0.00041095,30]
[394278191,1763416253019,-305.76780572,0.00041095,30]
[394278192,1763416253028,-500.0,0.00041095,30]